bitfinex/quotes_BTCUSD_20250830
["timestamp","ask_amount","ask_price","bid_price","bid_amount"]
[1756558878576,0.34647241,108820.0,108810.0,0.37563063]
[1756558878943,0.36373217,108820.0,108810.0,0.37563063]
[1756558879928,0.54752191,108820.0,108810.0,0.186634]
[1756558880129,0.5674058,108820.0,108810.0,0.159]
[1756558880506,0.5674058,108820.0,108810.0,0.34280663]
[1756558880866,0.5674058,108820.0,108810.0,0.34777663]
[1756558881847,0.5674058,108820.0,108810.0,0.34575663]
[1756558883371,0.5674058,108820.0,108810.0,0.34777663]
[1756558886381,0.5674058,108820.0,108810.0,0.16397]
[1756558887028,0.5674058,108820.0,108810.0,0.34777663]
[1756558887238,0.5674058,108820.0,108810.0,0.00795]
[1756558887407,0.5674058,108820.0,108810.0,0.159]
[1756558887803,0.5674058,108820.0,108810.0,0.005]
[1756558888016,0.5674058,108820.0,108810.0,0.159]
[1756558889253,0.55014598,108820.0,108810.0,0.159]
[1756558889434,0.5674056,108820.0,108810.0,0.159]
[1756558891155,0.64942109,108820.0,108810.0,0.159]
[1756558891339,0.5674056,108820.0,108810.0,0.159]
[1756558892752,0.5950416,108820.0,108810.0,0.159]
[1756558894411,0.5950416,108820.0,108810.0,0.005]
[1756558894607,0.7490416,108820.0,108810.0,0.005]
[1756558894824,0.7490416,108820.0,108810.0,0.159]
[1756558895025,0.93031793,108820.0,108810.0,0.005]
[1756558896020,0.93031793,108820.0,108810.0,0.003]
[1756558896212,0.52382352,108800.0,108790.0,0.030587]
[1756558896346,0.54108314,108800.0,108790.0,0.18673479]
[1756558896546,0.54108314,108800.0,108790.0,0.15909779]
[1756558897127,0.56872314,108800.0,108790.0,0.15909779]
[1756558897557,0.56872314,108800.0,108790.0,0.00505779]
[1756558897748,0.56872314,108800.0,108790.0,0.15913779]
[1756558898666,0.56872314,108800.0,108790.0,0.16213779]
[1756558898844,0.56872314,108800.0,108790.0,0.16713779]
[1756558899047,0.56872314,108800.0,108790.0,0.16413779]
[1756558899244,0.56872314,108800.0,108790.0,0.15913779]
[1756558899444,0.56872314,108800.0,108790.0,0.16113779]
[1756558899651,0.56872314,108800.0,108790.0,0.16413779]
[1756558899866,0.56869742,108800.0,108790.0,0.16413779]
[1756558902316,0.56869742,108800.0,108790.0,0.16211779]
[1756558902521,0.56869742,108800.0,108790.0,0.15916779]
[1756558902948,0.56869742,108800.0,108790.0,0.16211779]
[1756558903984,0.56869742,108800.0,108790.0,0.16413779]
[1756558906379,0.56869742,108800.0,108790.0,0.16509779]
[1756558910323,0.56868488,108800.0,108790.0,0.16509779]
[1756558911242,0.56868459,108800.0,108790.0,0.16509779]
[1756558916075,0.56868459,108800.0,108790.0,0.01005779]
[1756558916320,0.56868459,108800.0,108790.0,0.16493779]
[1756558920659,0.56868459,108800.0,108790.0,0.20688509]
[1756558920861,0.56870271,108800.0,108790.0,0.20688509]
[1756558921095,0.56870271,108800.0,108790.0,0.16493779]
[1756558921309,0.55146352,108800.0,108790.0,0.16493779]
[1756558921506,0.57517116,108800.0,108790.0,0.16493779]
[1756558923260,0.57517116,108800.0,108790.0,0.01005779]
[1756558923465,0.57517116,108800.0,108790.0,0.16299779]
[1756558923849,0.56870544,108800.0,108790.0,0.16299779]
[1756558924048,0.59504667,108800.0,108790.0,0.16299779]
[1756558925067,0.59504667,108800.0,108790.0,0.16508779]
[1756558926225,0.59504667,108800.0,108790.0,0.20705009]
[1756558926836,0.59504667,108800.0,108790.0,0.16508779]
[1756558927210,0.59505008,108800.0,108790.0,0.16508779]
[1756558929133,0.59505008,108800.0,108790.0,0.16480101]
[1756558930762,0.57133597,108800.0,108790.0,0.16480101]
[1756558930966,0.59507104,108800.0,108790.0,0.16480101]
[1756558931489,0.41124752,108800.0,108790.0,0.39287305]
[1756558931701,0.01726187,108800.0,108790.0,0.50449388]
[1756558931898,0.35726187,108800.0,108790.0,0.53213088]
[1756558932332,0.34,108800.0,108790.0,0.53213088]
[1756558940472,0.34,108800.0,108790.0,0.49019726]
[1756558941593,0.34,108800.0,108790.0,0.33523726]
[1756558941818,0.34,108800.0,108790.0,0.48999726]
[1756558946947,0.52382352,108800.0,108790.0,0.48999726]
[1756558947834,0.34,108800.0,108790.0,0.48999726]
[1756558950751,0.52382352,108800.0,108790.0,0.48991726]
[1756558950981,0.52382352,108800.0,108790.0,0.37595843]
[1756558951981,0.54105569,108800.0,108790.0,0.18707801]
[1756558952181,0.54105569,108800.0,108790.0,0.20549801]
[1756558952394,0.52382352,108800.0,108790.0,0.18707801]
[1756558952604,0.54105678,108800.0,108790.0,0.18703801]
[1756558953247,0.54105678,108800.0,108790.0,0.15940101]
[1756558954484,0.54105678,108800.0,108790.0,0.00480101]
[1756558954687,0.54105678,108800.0,108790.0,0.15940101]
[1756558957650,0.54105678,108800.0,108790.0,0.00480101]
[1756558957863,0.54105678,108800.0,108790.0,0.15936101]
[1756558958349,0.20105678,108800.0,108790.0,0.15936101]
[1756558958847,0.20752241,108800.0,108790.0,0.15936101]
[1756558959471,0.59502852,108800.0,108790.0,0.00480101]
[1756558962582,0.59502591,108800.0,108790.0,0.00480101]
[1756558962760,0.59502737,108800.0,108790.0,0.00480101]
[1756558963480,0.595025,108800.0,108790.0,0.00480101]
[1756558964508,0.749545,108800.0,108790.0,0.00480101]
[1756558964912,0.595025,108800.0,108790.0,0.00480101]
[1756558965141,0.749545,108800.0,108790.0,0.00480101]
[1756558970295,0.595025,108800.0,108790.0,0.00480101]
[1756558970501,0.749425,108800.0,108790.0,0.00480101]
[1756558973353,0.74941865,108800.0,108790.0,0.00480101]
[1756558974177,0.74941943,108800.0,108790.0,0.00480101]
[1756558977954,0.74933943,108800.0,108790.0,0.00480101]
[1756558978077,0.74933943,108800.0,108790.0,0.00794101]
[1756558979295,0.74929943,108800.0,108790.0,0.00794101]
[1756558980070,0.74929943,108800.0,108790.0,0.01008101]
[1756558980686,0.59501943,108800.0,108790.0,0.01008101]
[1756558982869,0.57779647,108800.0,108790.0,0.01008101]
[1756558983148,0.59504139,108800.0,108790.0,0.01008101]
[1756558983687,0.59504428,108800.0,108790.0,0.01008101]
[1756558984295,0.74928428,108800.0,108790.0,0.01008101]
[1756558985320,0.74924428,108800.0,108790.0,0.01008101]
[1756558985520,0.59504428,108800.0,108790.0,0.01008101]
[1756558985813,0.74924428,108800.0,108790.0,0.01008101]
[1756558986270,0.74924428,108800.0,108790.0,0.00480101]
[1756558986963,0.74924428,108800.0,108790.0,0.00794101]
[1756558988036,0.74924428,108800.0,108790.0,0.01008101]
[1756558989593,0.72160228,108800.0,108790.0,0.01008101]
[1756558989942,0.72161936,108800.0,108790.0,0.01008101]
[1756558991110,0.72161936,108800.0,108790.0,0.00794101]
[1756558993318,0.70436158,108800.0,108790.0,0.00794101]
[1756558993501,0.72162545,108800.0,108790.0,0.00794101]
[1756558994327,0.72162551,108800.0,108790.0,0.00794101]
[1756558995307,0.72162551,108800.0,108790.0,0.00480101]
[1756558998466,0.72162551,108800.0,108790.0,0.00794101]
[1756558999027,0.72162551,108800.0,108790.0,0.00480101]
[1756559000096,0.72162551,108800.0,108790.0,0.00800101]
[1756559004028,0.7216258,108800.0,108790.0,0.00800101]
[1756559004164,0.49278248,108800.0,108790.0,0.00800101]
[1756559004373,0.676606,108800.0,108790.0,0.00800101]
[1756559005124,0.67660593,108800.0,108790.0,0.00800101]
[1756559005324,0.67660593,108800.0,108790.0,0.00480101]
[1756559005960,0.67660593,108800.0,108790.0,0.00800101]
[1756559007143,0.67650482,108800.0,108790.0,0.00800101]
[1756559013266,0.93242529,108800.0,108790.0,0.00480101]
[1756559013503,0.96006929,108800.0,108790.0,0.00480101]
[1756559013993,0.98487877,108800.0,108790.0,0.00180101]
[1756559014219,0.98487877,108800.0,108770.0,0.030843]
[1756559014220,0.52385732,108780.0,108770.0,0.030843]
[1756559014438,0.52385732,108780.0,108770.0,0.03098634]
[1756559014439,0.54112192,108780.0,108770.0,0.03098634]
[1756559014662,0.54112192,108780.0,108770.0,0.03294634]
[1756559014935,0.5411162,108780.0,108770.0,0.03294634]
[1756559015360,0.54111608,108780.0,108770.0,0.03294634]
[1756559016069,0.54111608,108780.0,108770.0,0.03494634]
[1756559016296,0.54111608,108780.0,108770.0,0.07706589]
[1756559016517,0.54111608,108780.0,108770.0,0.03494634]
[1756559017173,0.54111608,108780.0,108770.0,0.03794634]
[1756559025358,0.52385732,108780.0,108770.0,0.03794634]
[1756559025570,0.54110198,108780.0,108770.0,0.03794634]
[1756559025779,0.35724466,108780.0,108770.0,0.22411899]
[1756559025997,0.18384048,108790.0,108780.0,0.18384637]
[1756559026212,0.54108273,108790.0,108780.0,0.34316637]
[1756559026846,0.35724231,108790.0,108780.0,0.37080837]
[1756559027070,0.28356297,108810.0,108790.0,0.18384042]
[1756559027287,0.45364754,108810.0,108790.0,0.18384042]
[1756559027524,0.45364754,108810.0,108800.0,0.00196]
[1756559027742,0.79364754,108810.0,108800.0,0.00516]
[1756559027957,0.63948754,108810.0,108800.0,0.00516]
[1756559028172,0.7936433,108810.0,108800.0,0.00516]
[1756559029045,0.77378674,108810.0,108800.0,0.00516]
[1756559029220,0.76732153,108810.0,108800.0,0.00516]
[1756559030499,0.51140056,108810.0,108800.0,0.00516]
[1756559030678,0.69523721,108810.0,108800.0,0.00516]
[1756559031502,0.69523721,108810.0,108800.0,0.00616]
[1756559031712,0.70169689,108810.0,108800.0,0.0032]
[1756559032098,0.52382352,108800.0,108790.0,0.07377251]
[1756559032519,0.54104769,108800.0,108790.0,0.07575251]
[1756559033759,0.54104769,108800.0,108790.0,0.032728]
[1756559034627,0.54104769,108800.0,108790.0,0.21656842]
[1756559034832,0.54104769,108800.0,108790.0,0.035728]
[1756559035238,0.52382352,108800.0,108790.0,0.035728]
[1756559035447,0.52382352,108800.0,108790.0,0.037728]
[1756559035655,0.54104364,108800.0,108790.0,0.037728]
[1756559035890,0.52382352,108800.0,108790.0,0.037728]
[1756559036092,0.54104364,108800.0,108790.0,0.22156842]
[1756559036294,0.52382352,108800.0,108790.0,0.22156842]
[1756559036700,0.54104255,108800.0,108790.0,0.22156842]
[1756559037245,0.52382352,108800.0,108790.0,0.22156842]
[1756559037653,0.54104158,108800.0,108790.0,0.037728]
[1756559038089,0.54104158,108800.0,108790.0,0.21856842]
[1756559038263,0.52382352,108800.0,108790.0,0.21856842]
[1756559038464,0.52382352,108800.0,108790.0,0.22156842]
[1756559038676,0.52382352,108800.0,108790.0,0.21856842]
[1756559038873,0.52382352,108800.0,108790.0,0.21656842]
[1756559039109,0.52382352,108800.0,108790.0,0.22156842]
[1756559039326,0.52382352,108800.0,108790.0,0.22356842]
[1756559039792,0.52382352,108800.0,108790.0,0.22156842]
[1756559040034,0.52382352,108800.0,108790.0,0.22456842]
[1756559040286,0.18382352,108800.0,108790.0,0.22456842]
[1756559040523,0.18382352,108800.0,108790.0,0.040728]
[1756559040934,0.18382352,108800.0,108790.0,0.22456842]
[1756559041976,0.18382352,108800.0,108790.0,0.29104319]
[1756559046034,0.18382352,108800.0,108790.0,0.22456842]
[1756559050216,0.20104843,108800.0,108790.0,0.22456842]
[1756559050759,0.18382352,108800.0,108790.0,0.040728]
[1756559050967,0.20104832,108800.0,108790.0,0.040728]
[1756559051581,0.20104832,108800.0,108790.0,0.22456842]
[1756559051997,0.20104832,108800.0,108790.0,0.19693042]
[1756559052602,0.20104832,108800.0,108790.0,0.01309]
[1756559052824,0.20104832,108800.0,108790.0,0.19693042]
[1756559053032,0.20104832,108800.0,108790.0,0.01309]
[1756559053670,0.20104832,108800.0,108790.0,0.008]
[1756559053671,0.54104832,108800.0,108790.0,0.008]
[1756559053882,0.56737245,108800.0,108790.0,0.008]
[1756559054082,0.74895831,108800.0,108790.0,0.008]
[1756559054932,0.74895831,108800.0,108790.0,0.003]
[1756559055326,0.74895831,108800.0,108790.0,0.004]
[1756559055458,0.77375147,108800.0,108790.0,0.004]
[1756559055815,0.82247126,108800.0,108790.0,0.001]
[1756559056016,0.82247406,108800.0,108790.0,0.002]
[1756559056347,0.82249491,108800.0,108790.0,0.002]
[1756559056539,0.80524926,108800.0,108790.0,0.001]
[1756559056741,0.82249001,108800.0,108790.0,0.001]
[1756559056950,0.77377022,108800.0,108790.0,0.001]
[1756559057484,0.74897706,108800.0,108790.0,0.001]
[1756559057926,0.81969706,108800.0,108790.0,0.001]
[1756559058144,5.68465122,108800.0,108790.0,0.001]
[1756559059187,0.52385732,108780.0,108770.0,0.00014334]
[1756559059404,0.69521807,108780.0,108770.0,0.00014334]
[1756559060037,0.70167796,108780.0,108770.0,0.00014334]
[1756559060275,0.69521807,108780.0,108770.0,0.00014334]
[1756559060488,0.69521807,108780.0,108770.0,0.00114334]
[1756559060708,0.72286407,108780.0,108770.0,0.00114334]
[1756559061751,0.72286407,108780.0,108770.0,0.00314334]
[1756559062167,0.85776088,108780.0,108770.0,0.00314334]
[1756559062378,0.87759604,108780.0,108770.0,0.00314334]
[1756559063192,0.87759604,108780.0,108770.0,0.00114334]
[1756559063960,0.87759604,108780.0,108770.0,0.00014334]
[1756559065387,0.87759604,108780.0,108770.0,0.00114334]
[1756559065592,0.87759604,108780.0,108770.0,0.00014334]
[1756559065983,0.87759604,108780.0,108770.0,0.00114334]
[1756559066418,0.85776088,108780.0,108770.0,0.00114334]
[1756559066638,0.85771047,108780.0,108770.0,0.00114334]
[1756559067182,0.94600679,108780.0,108770.0,0.00114334]
[1756559067585,0.96581551,108780.0,108770.0,0.00114334]
[1756559068014,0.90302191,108780.0,108770.0,0.00114334]
[1756559068427,5.8139017,108780.0,108770.0,0.00114334]
[1756559069767,5.8139017,108780.0,108770.0,0.00014334]
[1756559069982,5.83869486,108780.0,108770.0,0.00014334]
[1756559073697,5.83873486,108780.0,108770.0,0.00014334]
[1756559073891,5.68457486,108780.0,108770.0,0.00014334]
[1756559074124,5.83873486,108780.0,108770.0,0.00014334]
[1756559074320,5.68457486,108780.0,108770.0,0.00014334]
[1756559074500,5.83873486,108780.0,108770.0,0.00014334]
[1756559075102,5.81323214,108780.0,108770.0,0.00014334]
[1756559075713,5.90152846,108780.0,108770.0,0.00014334]
[1756559076100,5.77777201,108780.0,108770.0,0.00014334]
[1756559077125,5.76057418,108780.0,108770.0,0.00014334]
[1756559077338,5.7777479,108780.0,108770.0,0.00014334]
[1756559079486,5.6235879,108780.0,108770.0,0.00014334]
[1756559079730,5.7777479,108780.0,108770.0,0.00014334]
[1756559082274,5.81087092,108780.0,108770.0,0.00014334]
[1756559083321,5.78607776,108780.0,108770.0,0.00014334]
[1756559087927,5.78613992,108780.0,108770.0,0.00014334]
[1756559088312,5.83578977,108780.0,108770.0,0.00014334]
[1756559090278,5.8712499,108780.0,108770.0,0.00014334]
[1756559091079,5.95954622,108780.0,108770.0,0.00014334]
[1756559091285,5.98509135,108780.0,108770.0,0.00014334]
[1756559091503,5.98509666,108780.0,108770.0,0.00014334]
[1756559092376,5.95197364,108780.0,108770.0,0.00014334]
[1756559093205,5.86367732,108780.0,108770.0,0.00014334]
[1756559095007,5.86369914,108780.0,108770.0,0.00014334]
[1756559098380,5.84646365,108780.0,108770.0,0.00014334]
[1756559098613,5.86373487,108780.0,108770.0,0.00014334]
[1756559099383,5.86373594,108780.0,108770.0,0.00014334]
[1756559100100,5.86373594,108780.0,108770.0,0.00333334]
[1756559100276,5.70957594,108780.0,108770.0,0.00333334]
[1756559100683,5.86373594,108780.0,108770.0,0.00333334]
[1756559100870,5.83828367,108780.0,108770.0,0.00333334]
[1756559101328,5.92657999,108780.0,108770.0,0.00014334]
[1756559102524,5.92657952,108780.0,108770.0,0.00014334]
[1756559103215,5.8382832,108780.0,108770.0,0.00333334]
[1756559103442,5.6841232,108780.0,108770.0,0.00333334]
[1756559103669,5.8382832,108780.0,108770.0,0.00333334]
[1756559104983,5.8382832,108780.0,108770.0,0.00529334]
[1756559107080,5.8382832,108780.0,108770.0,0.00333334]
[1756559107283,5.91104521,108780.0,108770.0,0.00333334]
[1756559107861,5.91104514,108780.0,108770.0,0.00333334]
[1756559108062,5.91104655,108780.0,108770.0,0.00333334]
[1756559108778,5.91104655,108780.0,108770.0,0.00014334]
[1756559108988,5.93659168,108780.0,108770.0,0.00014334]
[1756559110447,5.9366839,108780.0,108770.0,0.00014334]
[1756559110765,0.52387423,108770.0,108760.0,0.003374]
[1756559110943,0.52387423,108770.0,108760.0,0.00342173]
[1756559110944,5.83728843,108770.0,108760.0,0.00342173]
[1756559111086,5.8870305,108770.0,108760.0,0.00342173]
[1756559111292,5.83728843,108770.0,108760.0,0.00342173]
[1756559111501,5.87933392,108770.0,108760.0,0.00342173]
[1756559111709,5.92907599,108770.0,108760.0,0.00023173]
[1756559111912,5.89591461,108770.0,108760.0,0.00023173]
[1756559112156,5.88152212,108770.0,108760.0,1e-08]
[1756559112534,0.52389113,108760.0,108750.0,0.00319]
[1756559112770,5.9084515,108760.0,108750.0,0.00319]
[1756559112978,5.9084515,108760.0,108750.0,0.00515]
[1756559115556,5.76824525,108760.0,108750.0,0.00515]
[1756559115757,5.88298637,108760.0,108750.0,0.00515]
[1756559116187,5.9085315,108760.0,108750.0,0.00319]
[1756559117364,5.89738085,108760.0,108750.0,0.00319]
[1756559118652,5.92288718,108760.0,108750.0,0.00319]
[1756559118855,5.95054318,108760.0,108750.0,0.00319]
[1756559120701,5.79586318,108760.0,108750.0,0.00319]
[1756559120934,5.95082318,108760.0,108750.0,0.0053]
[1756559121131,5.92527805,108760.0,108750.0,0.0053]
[1756559122327,5.96734535,108760.0,108750.0,0.0053]
[1756559123525,5.99216842,108760.0,108750.0,0.0053]
[1756559123726,5.79514112,108760.0,108750.0,0.0053]
[1756559123933,0.95299612,108760.0,108750.0,0.0053]
[1756559124155,0.91377857,108760.0,108750.0,0.0053]
[1756559124995,0.75885857,108760.0,108750.0,0.0053]
[1756559125246,0.91381857,108760.0,108750.0,0.0053]
[1756559126671,0.82083856,108760.0,108750.0,0.0053]
[1756559127319,0.83523078,108760.0,108750.0,0.0053]
[1756559128597,0.83623078,108760.0,108750.0,0.0053]
[1756559129059,0.8362203,108760.0,108750.0,0.0053]
[1756559129317,0.8352203,108760.0,108750.0,0.0053]
[1756559129696,0.68026028,108760.0,108750.0,0.0053]
[1756559129886,0.82871649,108760.0,108750.0,0.0053]
[1756559130096,0.83518028,108760.0,108750.0,0.0053]
[1756559130943,0.83518028,108760.0,108750.0,0.0063]
[1756559132388,0.65128915,108760.0,108750.0,0.0063]
[1756559132746,0.83518028,108760.0,108750.0,0.0063]
[1756559132955,0.65260428,108760.0,108750.0,0.0063]
[1756559133201,0.37809278,108760.0,108750.0,0.19020804]
[1756559133572,0.71044012,108760.0,108750.0,0.22762131]
[1756559133782,0.6960479,108760.0,108750.0,0.22762131]
[1756559134011,0.6960479,108760.0,108750.0,0.0063]
[1756559134237,0.7025111,108760.0,108750.0,0.0063]
[1756559139217,0.79549111,108760.0,108750.0,0.00419]
[1756559139605,0.79548978,108760.0,108750.0,0.00419]
[1756559139835,0.79548468,108760.0,108750.0,0.00419]
[1756559140048,0.90932613,108760.0,108750.0,0.001]
[1756559140250,0.96236237,108760.0,108750.0,0.001]
[1756559140452,1.00441114,108760.0,108750.0,0.001]
[1756559140884,5.84457214,108760.0,108750.0,0.001]
[1756559142138,5.91529214,108760.0,108750.0,0.001]
[1756559143953,5.94011521,108760.0,108750.0,0.001]
[1756559144994,5.91529214,108760.0,108750.0,0.001]
[1756559145362,5.94011521,108760.0,108750.0,0.001]
[1756559146220,5.92572244,108760.0,108750.0,0.001]
[1756559146695,5.80340305,108760.0,108750.0,0.001]
[1756559147104,5.64848305,108760.0,108750.0,0.001]
[1756559147335,5.80336305,108760.0,108750.0,0.00422]
[1756559147919,5.80336305,108760.0,108750.0,0.00633]
[1756559148121,5.77781792,108760.0,108750.0,0.00633]
[1756559148540,5.62293792,108760.0,108750.0,0.00633]
[1756559148740,5.77785792,108760.0,108750.0,0.00633]
[1756559149258,5.74467279,108760.0,108750.0,0.00633]
[1756559149460,5.75906567,108760.0,108750.0,0.00422]
[1756559149885,5.60414567,108760.0,108750.0,0.00634]
[1756559150087,5.7526038,108760.0,108750.0,0.00634]
[1756559150421,5.75908275,108760.0,108750.0,0.00634]
[1756559150627,5.75912275,108760.0,108750.0,0.00634]
[1756559150802,5.75912319,108760.0,108750.0,0.00634]
[1756559151006,5.75912319,108760.0,108750.0,0.00422]
[1756559152315,5.78394626,108760.0,108750.0,0.00422]
[1756559153309,5.78394626,108760.0,108750.0,0.00634]
[1756559154136,5.60416319,108760.0,108750.0,0.00634]
[1756559154339,5.75916319,108760.0,108750.0,0.00634]
[1756559154717,5.78398626,108760.0,108750.0,0.00634]
[1756559155597,5.75912319,108760.0,108750.0,0.00634]
[1756559156726,5.78394626,108760.0,108750.0,0.00634]
[1756559157267,5.78395073,108760.0,108750.0,0.00634]
[1756559158131,5.78391073,108760.0,108750.0,0.00634]
[1756559159437,0.87302973,108760.0,108750.0,0.00634]
[1756559159644,0.84820666,108760.0,108750.0,0.00634]
[1756559160463,0.60030665,108760.0,108750.0,0.00634]
[1756559160674,0.75522665,108760.0,108750.0,0.19024804]
[1756559160876,0.71317876,108760.0,108750.0,0.00634]
[1756559162771,0.71317831,108760.0,108750.0,0.00634]
[1756559165669,0.80615832,108760.0,108750.0,0.001]
[1756559166111,0.83098206,108760.0,108750.0,0.001]
[1756559166605,0.85863606,108760.0,108750.0,0.001]
[1756559167796,0.85863606,108760.0,108750.0,0.0042]
[1756559170437,0.85864909,108760.0,108750.0,0.0042]
[1756559170633,0.50302602,108760.0,108750.0,0.0042]
[1756559171061,0.50302614,108760.0,108750.0,0.001]
[1756559171279,0.59132246,108760.0,108750.0,0.001]
[1756559171687,0.50302614,108760.0,108750.0,0.001]
[1756559172628,0.85741906,108760.0,108750.0,0.001]
[1756559172991,0.84302614,108760.0,108750.0,0.001]
[1756559173592,0.84302614,108760.0,108750.0,0.0042]
[1756559176313,0.85741888,108760.0,108750.0,0.0042]
[1756559177794,0.85741888,108760.0,108750.0,0.00632]
[1756559180772,0.88224195,108760.0,108750.0,0.00632]
[1756559181118,0.88224539,108760.0,108750.0,0.00632]
[1756559182141,0.83757121,108760.0,108750.0,0.00632]
[1756559182338,0.88231027,108760.0,108750.0,0.00632]
[1756559183779,0.88231185,108760.0,108750.0,0.00632]
[1756559184100,0.72739185,108760.0,108750.0,0.00632]
[1756559184288,0.88243185,108760.0,108750.0,0.00632]
[1756559184691,0.88243259,108760.0,108750.0,0.00632]
[1756559187898,1.06378203,108760.0,108720.0,0.027652]
[1756559188118,0.34,108680.0,108670.0,0.0004]
[1756559188334,5.68532353,108680.0,108670.0,0.0004]
[1756559188638,0.6019074,108670.0,108660.0,1e-08]
[1756559188923,0.6019074,108670.0,108650.0,0.0004]
[1756559188924,0.23406036,108660.0,108650.0,0.0004]
[1756559189261,5.3453574,108660.0,108650.0,0.00336]
[1756559189445,5.3453574,108660.0,108650.0,0.0004]
[1756559189446,5.53398619,108660.0,108650.0,0.0004]
[1756559189650,5.47433372,108660.0,108650.0,0.0004]
[1756559189836,5.39646975,108660.0,108650.0,0.0004]
[1756559190195,5.90586311,108660.0,108650.0,0.0004]
[1756559190385,5.77838505,108660.0,108650.0,0.0004]
[1756559190595,5.64018159,108660.0,108650.0,0.0004]
[1756559190799,5.79706159,108660.0,108650.0,0.00531]
[1756559191466,5.79706159,108660.0,108650.0,0.0004]
[1756559191467,5.79806159,108660.0,108650.0,0.0004]
[1756559191695,5.81222774,108660.0,108650.0,0.0004]
[1756559191984,5.90052406,108660.0,108650.0,0.0004]
[1756559192191,5.94129897,108660.0,108650.0,0.0004]
[1756559192400,5.85300265,108660.0,108650.0,0.00531]
[1756559193205,5.69612265,108660.0,108650.0,0.00531]
[1756559193409,5.85296265,108660.0,108650.0,0.00531]
[1756559193839,5.85292265,108660.0,108650.0,0.00531]
[1756559194863,5.85097157,108660.0,108650.0,0.00531]
[1756559195481,5.83656439,108660.0,108650.0,0.00531]
[1756559196313,0.15375409,108660.0,108650.0,0.18938731]
[1756559196525,0.02128863,108660.0,108650.0,0.58967678]
[1756559196734,0.01153863,108660.0,108650.0,0.70359561]
[1756559197168,0.01153863,108660.0,108650.0,0.35694948]
[1756559197378,0.01153863,108660.0,108650.0,0.51386948]
[1756559197581,0.01153863,108660.0,108650.0,0.86051561]
[1756559198220,0.01153863,108660.0,108650.0,0.87251561]
[1756559198636,0.01153863,108660.0,108650.0,0.52586948]
[1756559198839,0.01153863,108660.0,108650.0,0.90018361]
[1756559199822,0.01153863,108660.0,108650.0,0.55045748]
[1756559200028,0.01153863,108660.0,108650.0,0.33997414]
[1756559200216,0.01153863,108660.0,108650.0,0.34201414]
[1756559200846,0.01153863,108660.0,108650.0,0.33701414]
[1756559201050,0.01153863,108660.0,108650.0,0.34101414]
[1756559201308,0.01153863,108660.0,108650.0,0.31107532]
[1756559201532,0.01153863,108660.0,108650.0,0.23903413]
[1756559201748,0.01153863,108660.0,108650.0,0.21536613]
[1756559202106,0.39399368,108670.0,108650.0,0.21536613]
[1756559202315,0.41361311,108670.0,108650.0,0.21584412]
[1756559202480,0.22956942,108670.0,108660.0,0.18406037]
[1756559202681,0.41361285,108670.0,108660.0,0.18406037]
[1756559202923,0.41361285,108670.0,108650.0,0.30019044]
[1756559203180,0.41560285,108670.0,108650.0,0.30019044]
[1756559203425,0.41560285,108670.0,108660.0,0.18406037]
[1756559203632,0.41361285,108670.0,108660.0,0.18406037]
[1756559204638,0.41560285,108670.0,108650.0,0.29619044]
[1756559204878,0.41560285,108670.0,108650.0,0.29919044]
[1756559205087,0.41560285,108670.0,108660.0,0.002]
[1756559205499,0.41560285,108670.0,108660.0,0.007]
[1756559205780,0.23155942,108670.0,108660.0,0.18606037]
[1756559205980,0.23155942,108670.0,108660.0,0.19794334]
[1756559206396,0.41560285,108670.0,108660.0,0.19794334]
[1756559206606,0.41560285,108670.0,108660.0,0.19594334]
[1756559206766,0.41560285,108670.0,108660.0,0.18406037]
[1756559207168,0.06961942,108670.0,108660.0,0.18406037]
[1756559207367,0.01961943,108670.0,108660.0,0.4546592]
[1756559207574,0.04999999,108680.0,108670.0,0.18404343]
[1756559207823,0.06964265,108680.0,108670.0,0.18404343]
[1756559208227,0.06964265,108680.0,108670.0,0.24861369]
[1756559208597,0.25880914,108680.0,108670.0,0.18404343]
[1756559208799,0.18404343,108670.0,108660.0,0.18605323]
[1756559208998,0.26263678,108670.0,108660.0,0.18605323]
[1756559209197,0.28228576,108670.0,108660.0,0.18605323]
[1756559209453,0.28228576,108670.0,108660.0,0.002]
[1756559209644,0.43824233,108670.0,108660.0,0.18606037]
[1756559209846,0.43310233,108670.0,108660.0,0.24250932]
[1756559210498,0.61714576,108670.0,108660.0,0.24250932]
[1756559210670,0.62231576,108670.0,108660.0,0.24050932]
[1756559210916,0.62231576,108670.0,108660.0,0.18406037]
[1756559211096,0.62231576,108670.0,108650.0,0.35067916]
[1756559211322,0.77883576,108670.0,108650.0,0.19415916]
[1756559211503,0.77883576,108670.0,108660.0,0.18406037]
[1756559211910,0.77883576,108670.0,108660.0,0.007]
[1756559212272,0.8033563,108670.0,108660.0,0.007]
[1756559212822,0.80338838,108670.0,108660.0,0.002]
[1756559213021,0.80340041,108670.0,108660.0,0.002]
[1756559213248,0.80340041,108670.0,108660.0,0.007]
[1756559213453,0.80340369,108670.0,108660.0,0.007]
[1756559213806,0.80340369,108670.0,108630.0,0.0004]
[1756559213807,0.52407731,108650.0,108630.0,0.0004]
[1756559214011,5.78993064,108640.0,108630.0,0.00054367]
[1756559214190,0.18417902,108590.0,108570.0,0.031893]
[1756559214414,0.22732875,108590.0,108580.0,0.00212]
[1756559214625,0.23249875,108590.0,108580.0,0.00259637]
[1756559214845,0.22938875,108590.0,108580.0,0.00259637]
[1756559215042,0.23249875,108590.0,108580.0,0.00259637]
[1756559215246,0.23249875,108590.0,108580.0,0.00047637]
[1756559215664,0.25711015,108590.0,108580.0,0.00047637]
[1756559216083,0.25711015,108590.0,108580.0,0.00447637]
[1756559216702,0.27531636,108590.0,108580.0,0.00447637]
[1756559219449,0.25070496,108590.0,108580.0,0.00447637]
[1756559219660,0.04314973,108590.0,108580.0,0.19633479]
[1756559219857,0.04314973,108590.0,108580.0,0.23210708]
[1756559220067,0.04314973,108590.0,108580.0,0.22886708]
[1756559220270,0.06148479,108590.0,108580.0,0.22886708]
[1756559220474,0.06148479,108590.0,108580.0,0.19079235]
[1756559220982,0.24566381,108590.0,108580.0,0.19079235]
[1756559221179,0.24566381,108590.0,108580.0,0.34923235]
[1756559222332,0.06147092,108590.0,108580.0,0.19079235]
[1756559222535,0.24564994,108590.0,108580.0,0.19079235]
[1756559222740,0.06147092,108590.0,108580.0,0.19079235]
[1756559222874,0.06146767,108590.0,108580.0,0.19079235]
[1756559223294,0.06146767,108590.0,108580.0,0.24448484]
[1756559223530,0.06146767,108590.0,108580.0,0.19079235]
[1756559224577,0.24564669,108590.0,108580.0,0.19079235]
[1756559225166,0.06146767,108590.0,108580.0,0.19079235]
[1756559226411,0.04181869,108590.0,108580.0,0.19079235]
[1756559227487,0.06147322,108590.0,108580.0,0.19079235]
[1756559228759,0.06147322,108590.0,108580.0,0.24448484]